fUST/lending_fUST_20241007
["ID","MTS","AMOUNT","RATE_DAILY","PERIOD"]
[339978609,1728245529956,-500.0,0.00032876,2]
[339978610,1728245529966,-719.12413362,0.00032876,2]
[339978611,1728245529977,-500.0,0.00032876,2]
[339978612,1728245529990,-719.12413362,0.00032876,2]
[339978613,1728245530000,-719.12413362,0.00032876,2]
[339978614,1728245530011,-719.12413362,0.00032876,2]
[339978615,1728245530022,-719.12413362,0.00032876,2]
[339978616,1728245530034,-719.12413362,0.00032876,2]
[339978617,1728245530047,-719.12413362,0.00032876,2]
[339978618,1728245530059,-719.12413362,0.00032876,2]
[339978619,1728245530069,-719.12413362,0.00032876,2]
[339978620,1728245530080,-719.12413362,0.00032876,2]
[339978621,1728245530090,-719.12413362,0.00032876,2]
[339978622,1728245530099,-719.12413362,0.00032876,2]
[339978623,1728245530110,-719.12413362,0.00032876,2]
[339978624,1728245530119,-719.12413362,0.00032876,2]
[339978625,1728245530129,-719.12413362,0.00032876,2]
[339978626,1728245530138,-719.12413362,0.00032876,2]
[339978627,1728245530149,-719.12413362,0.00032876,2]
[339978628,1728245530158,-719.12413362,0.00032876,2]
[339978629,1728245530172,-719.12413362,0.00032876,2]
[339978630,1728245530181,-719.12413362,0.00032876,2]
[339978631,1728245530191,-719.12413362,0.00032876,2]
[339978632,1728245530202,-719.12413362,0.00032876,2]
[339978633,1728245530213,-719.12413362,0.00032876,2]
[339978634,1728245530223,-719.12413362,0.00032876,2]
[339978635,1728245530233,-719.12413362,0.00032876,2]
[339978636,1728245530244,-719.12413362,0.00032876,2]
[339978637,1728245530254,-719.12413362,0.00032876,2]
[339978638,1728245530264,-719.12413362,0.00032876,2]
[339978639,1728245530274,-719.12413362,0.00032876,2]
[339978640,1728245530283,-719.12413362,0.00032876,2]
[339978641,1728245530293,-719.12413362,0.00032876,2]
[339978642,1728245530303,-719.12413362,0.00032876,2]
[339978643,1728245530313,-719.12413362,0.00032876,2]
[339978644,1728245530322,-719.12413362,0.00032876,2]
[339978645,1728245530331,-719.12413362,0.00032876,2]
[339978646,1728245530341,-719.12413362,0.00032876,2]
[339978647,1728245530351,-610.83249937,0.00032876,2]
[339978648,1728245530361,-610.83249937,0.00032876,2]
[339978649,1728245530371,-610.83249937,0.00032876,2]
[339978650,1728245530381,-610.83249937,0.00032876,2]
[339978651,1728245530390,-610.83249936,0.00032876,2]
[339978652,1728245530400,-1241.03,0.00032876,120]
[339978653,1728245530409,-1000.0,0.00032876,2]
[339978654,1728245530420,-1000.0,0.00032876,2]
[339978655,1728245530429,-1000.0,0.00032876,2]
[339978656,1728245530439,-1000.0,0.00032876,2]
[339978657,1728245530450,-1000.0,0.00032876,2]
[339978658,1728245530460,-641.32974693,0.00032876,2]
[339978659,1728245530469,-400.0,0.00032877,60]
[339978660,1728245530479,-2150.0,0.00032877,5]
[339978661,1728245530488,-1000.0,0.000329,12]
[339978662,1728245530498,-16335.46037864,0.00033,2]
[339978663,1728245530507,-263.0,0.00033,2]
[339978664,1728245530517,-263.0,0.00033,2]
[339978665,1728245530527,-152.0,0.00033046,7]
[339978666,1728245530537,-1241.03,0.0003315,120]
[339978667,1728245530546,-1000.0,0.000334,12]
[339978668,1728245530556,-1241.03,0.00033424,120]
[339978669,1728245530566,-462.16811608,0.00033425,5]
[339978670,1728245530576,-739.0,0.00033452,2]
[339978671,1728245530746,-273.714246,0.00033598,2]
[339978672,1728245530759,-300.0,0.000336,8]
[339978673,1728245530770,-300.0,0.000336,8]
[339978674,1728245530781,-300.0,0.000336,8]
[339978675,1728245530792,-302.53417588,0.00033613,2]
[339978676,1728245530804,-272.4746724,0.0003368,2]
[339978677,1728245530816,-1241.03,0.00033698,120]
[339978678,1728245530826,-2527.83659504,0.00033709,4]
[339978679,1728245530836,-171.0,0.00033725,2]
[339978680,1728245530848,-171.0,0.00033725,4]
[339978681,1728245530860,-171.0,0.00033725,6]
[339978682,1728245530869,-3022.6665703,0.00033725,2]
[339978683,1728245530879,-89262.2102829,0.00033725,2]
[339978684,1728245530893,-300.0,0.00033725,2]
[339978685,1728245530903,-793.28003395,0.00033725,2]
[339978686,1728245530912,-6447.75631665,0.00033725,2]
[339978687,1728245530923,-514.14824127,0.00033725,2]
[339978688,1728245530933,-290.97063877,0.00033725,2]
[339978689,1728245530944,-4150.51371585,0.00033725,2]
[339978690,1728245530955,-320.3553498,0.00033725,2]
[339978691,1728245530965,-1185.08660692,0.00033725,2]
[339978692,1728245530976,-285.84194715,0.00033725,2]
[339978693,1728245530987,-50688.40924663,0.00033725,2]
[339978694,1728245530997,-4121.30597018,0.00033725,2]
[339978695,1728245531009,-10098.76980167,0.00033725,2]
[339978696,1728245531020,-9832.12640226,0.00033725,2]
[339978697,1728245531030,-1151.53319765,0.00033725,2]
[339978698,1728245531040,-154.31083377,0.00033725,2]
[339978699,1728245531052,-20817.65007415,0.00033725,2]
[339978700,1728245531062,-11390.89511691,0.00033725,2]
[339978701,1728245531293,-1210.29858918,0.00033725,2]
[339978702,1728245531508,-617.35,0.00013972,2]
[339978703,1728245531519,-500.0,0.00013973,2]
[339978704,1728245531529,-500.0,0.00014246,2]
[339978705,1728245531541,-617.35,0.00014246,2]
[339978706,1728245531551,-59.39759214,0.0001452,2]
[339978789,1728246640065,-171.24843,0.00012847,2]
[339978790,1728246640075,-171.24843,0.00013014,2]
[339978791,1728246640085,-234.702203,0.00013096,2]
[339978792,1728246640094,-171.24843,0.00013182,2]
[339978793,1728246640103,-171.24843,0.00013349,2]
[339978794,1728246640114,-171.24843,0.00013516,2]
[339978795,1728246640124,-1899.52281801,0.00013598,2]
[339978803,1728246643005,-255.15470482,0.00013598,2]
[339978804,1728246643017,-300.0,0.00013687,2]
[339978805,1728246643027,-300.0,0.00013687,2]
[339978806,1728246643037,-4771.58535614,0.00013688,2]
[339978807,1728246643115,-624.23361435,0.00013688,2]
[339978810,1728246645997,-19504.18102951,0.00013688,2]
[339978811,1728246646008,-153.52700896,0.0001369,2]
[339978812,1728246646019,-500.0,0.00013698,2]
[339978813,1728246646028,-500.0,0.00013698,2]
[339978814,1728246646040,-500.0,0.00013698,2]
[339978815,1728246646049,-670.97,0.00013698,2]
[339978816,1728246646060,-500.0,0.00013698,2]
[339978817,1728246646070,-172.61723743,0.00013698,2]
[339978818,1728246646081,-500.0,0.00013698,2]
[339978819,1728246646091,-500.0,0.00013698,2]
[339978820,1728246646103,-556.15,0.00013698,2]
[339978821,1728246646112,-581.18,0.00013698,2]
[339978822,1728246646122,-540.18,0.00013698,2]
[339978823,1728246646133,-166.666666,0.00013699,2]
[339978824,1728246646146,-190.162864,0.00013699,2]
[339978825,1728246646157,-893.0,0.000137,2]
[339978826,1728246646170,-6362.88796321,0.00013832,2]
[339978827,1728246646181,-500.0,0.00013972,2]
[339978828,1728246646191,-500.0,0.00013972,2]
[339978829,1728246646201,-500.0,0.00013972,2]
[339978830,1728246646212,-670.97,0.00013972,2]
[339978831,1728246646223,-500.0,0.00013972,2]
[339978832,1728246646233,-500.0,0.00013972,2]
[339978833,1728246646245,-500.0,0.00013972,2]
[339978834,1728246646257,-556.15,0.00013972,2]
[339978835,1728246646270,-581.18,0.00013972,2]
[339978836,1728246646281,-540.18,0.00013972,2]
[339978837,1728246646291,-2500.0,0.00014,2]
[339978838,1728246646301,-879.06077152,0.00014,2]
[339978839,1728246646310,-166.666666,0.00014019,2]
[339978840,1728246646320,-500.0,0.00014246,2]
[339978841,1728246646329,-500.0,0.00014246,2]
[339978842,1728246646339,-500.0,0.00014246,2]
[339978843,1728246646348,-670.97,0.00014246,2]
[339978844,1728246646357,-500.0,0.00014246,2]
[339978845,1728246646366,-500.0,0.00014246,2]
[339978846,1728246646375,-500.0,0.00014246,2]
[339978847,1728246646384,-556.15,0.00014246,2]
[339978848,1728246646393,-581.18,0.00014246,2]
[339978849,1728246646402,-540.18,0.00014246,2]
[339978850,1728246646411,-166.666666,0.0001434,2]
[339978851,1728246646421,-266.41653337,0.0001452,2]
[339978852,1728246646430,-500.0,0.0001452,2]
[339978853,1728246646439,-500.0,0.0001452,2]
[339978854,1728246646449,-670.97,0.0001452,2]
[339978855,1728246646457,-488.85985953,0.0001452,2]
[339978856,1728246646466,-500.0,0.0001452,2]
[339978857,1728246646476,-500.0,0.0001452,2]
[339978858,1728246646485,-556.15,0.0001452,2]
[339978859,1728246646494,-581.18,0.0001452,2]
[339978860,1728246646504,-540.18,0.0001452,2]
[339978861,1728246646513,-166.666666,0.0001466,2]
[339978862,1728246646522,-963.81,0.00014793,2]
[339978863,1728246646532,-500.0,0.00014793,2]
[339978864,1728246646542,-500.0,0.00014793,2]
[339978865,1728246646551,-500.0,0.00014793,2]
[339978866,1728246646562,-500.0,0.00014794,2]
[339978867,1728246646571,-500.0,0.00014794,2]
[339978868,1728246646581,-670.97,0.00014794,2]
[339978869,1728246646590,-500.0,0.00014794,2]
[339978870,1728246646599,-500.0,0.00014794,2]
[339978871,1728246646609,-556.15,0.00014794,2]
[339978872,1728246646618,-581.18,0.00014794,2]
[339978873,1728246646628,-540.18,0.00014794,2]
[339978874,1728246646637,-423.30137783,0.000149,2]
[339978875,1728246646646,-423.30137783,0.000149,2]
[339978876,1728246646656,-166.666666,0.00014981,2]
[339978877,1728246646665,-500.0,0.00015067,2]
[339978878,1728246646675,-963.81,0.00015067,2]
[339978879,1728246646684,-500.0,0.00015067,2]
[339978880,1728246646693,-500.0,0.00015067,2]
[339978881,1728246646702,-500.0,0.00015067,2]
[339978882,1728246646712,-500.0,0.00015068,2]
[339978883,1728246646721,-500.0,0.00015068,2]
[339978884,1728246646730,-670.97,0.00015068,2]
[339978885,1728246646739,-500.0,0.00015068,2]
[339978886,1728246646748,-500.0,0.00015068,2]
[339978887,1728246646758,-556.15,0.00015068,2]
[339978888,1728246646767,-581.18,0.00015068,2]
[339978889,1728246646776,-540.18,0.00015068,2]
[339978890,1728246646786,-166.666666,0.00015301,2]
[339978891,1728246646796,-500.0,0.0001532,2]
[339978892,1728246646805,-500.0,0.00015341,2]
[339978893,1728246646814,-963.81,0.00015341,2]
[339978894,1728246646823,-500.0,0.00015341,2]
[339978895,1728246646832,-546.54828484,0.00015341,2]
[339978896,1728246646842,-500.0,0.00015341,2]
[339978897,1728246646852,-500.0,0.00015342,2]
[339978898,1728246646866,-500.0,0.00015342,2]
[339978899,1728246646876,-670.97,0.00015342,2]
[339978900,1728246646886,-500.0,0.00015342,2]
[339978901,1728246646895,-500.0,0.00015342,2]
[339978902,1728246646904,-556.15,0.00015342,2]
[339978903,1728246646914,-581.18,0.00015342,2]
[339978904,1728246646923,-540.18,0.00015342,2]
[339978905,1728246646932,-500.0,0.0001547,2]
[339978906,1728246646942,-549.80656059,0.0001547,2]
[339978907,1728246646952,-500.0,0.0001547,2]
[339978908,1728246646961,-500.0,0.0001547,2]
[339978909,1728246646970,-300.0,0.00015519,2]
[339978910,1728246646981,-3200.0,0.00015519,2]
[339978911,1728246646991,-500.0,0.00015615,2]
[339978912,1728246647002,-963.81,0.00015615,2]
[339978913,1728246647011,-500.0,0.00015615,2]
[339978914,1728246647021,-500.0,0.00015615,2]
[339978915,1728246647033,-500.0,0.00015616,2]
[339978916,1728246647052,-500.0,0.00015616,2]
[339978917,1728246647063,-670.97,0.00015616,2]
[339978918,1728246647073,-631.25426752,0.00015616,2]
[339978919,1728246647083,-500.0,0.00015616,2]
[339978920,1728246647092,-556.15,0.00015616,2]
[339978921,1728246647102,-581.18,0.00015616,2]
[339978922,1728246647112,-540.18,0.00015616,2]
[339978923,1728246647122,-457.59467638,0.00015889,2]
[339978924,1728246647131,-963.81,0.00015889,2]
[339978925,1728246647142,-191.45222314,0.00015889,2]
[339978926,1728246647151,-500.0,0.00015889,2]
[339978927,1728246647162,-500.0,0.0001589,2]
[339978928,1728246647172,-500.0,0.0001589,2]
[339978929,1728246647182,-670.97,0.0001589,2]
[339978930,1728246647192,-500.0,0.0001589,2]
[339978931,1728246647202,-556.15,0.0001589,2]
[339978932,1728246647211,-581.18,0.0001589,2]
[339978933,1728246647221,-540.18,0.0001589,2]
[339978934,1728246647231,-963.81,0.00016163,2]
[339978935,1728246647242,-500.0,0.00016163,2]
[339978936,1728246647254,-500.0,0.00016164,2]
[339978937,1728246647266,-500.0,0.00016164,2]
[339978938,1728246647278,-670.97,0.00016164,2]
[339978939,1728246647292,-500.0,0.00016164,2]
[339978940,1728246647303,-556.15,0.00016164,2]
[339978941,1728246647314,-581.18,0.00016164,2]
[339978942,1728246647326,-540.18,0.00016164,2]
[339978943,1728246647339,-500.0,0.00016365,2]
[339978944,1728246647350,-963.81,0.00016437,2]
[339978945,1728246647361,-500.0,0.00016437,2]
[339978946,1728246647374,-500.0,0.00016438,2]
[339978947,1728246647384,-500.0,0.00016438,2]
[339978948,1728246647396,-670.97,0.00016438,2]
[339978949,1728246647569,-242.74593244,0.00016438,2]
[339978950,1728246647580,-556.15,0.00016438,2]
[339978951,1728246647590,-581.18,0.00016438,2]
[339978952,1728246647600,-540.18,0.00016438,2]
[339978953,1728246647616,-1000.0,0.00016502,2]
[339978954,1728246647628,-500.0,0.00016557,2]
[339978955,1728246647638,-500.0,0.00016557,2]
[339978956,1728246647649,-1500.0,0.00016638,2]
[339978957,1728246647661,-963.81,0.00016711,2]
[339978958,1728246647674,-500.0,0.00016711,2]
[339978959,1728246647686,-500.0,0.00016712,2]
[339978960,1728246647697,-500.0,0.00016712,2]
[339978961,1728246647707,-670.97,0.00016712,2]
[339978962,1728246647718,-556.15,0.00016712,2]
[339978963,1728246647729,-581.18,0.00016712,2]
[339978964,1728246647739,-540.18,0.00016712,2]
[339978965,1728246647748,-503.0,0.00016775,2]
[339978966,1728246647759,-2154.67752281,0.00016851,2]
[339978967,1728246647770,-963.81,0.00016985,2]
[339978968,1728246647781,-500.0,0.00016985,2]
[339978969,1728246647793,-500.0,0.00016986,2]
[339978970,1728246647804,-500.0,0.00016986,2]
[339978971,1728246647815,-670.97,0.00016986,2]
[339978972,1728246647827,-556.15,0.00016986,2]
[339978973,1728246647838,-581.18,0.00016986,2]
[339978974,1728246647847,-540.18,0.00016986,2]
[339978975,1728246647857,-963.81,0.00017259,2]
[339978976,1728246647870,-500.0,0.00017259,2]
[339978977,1728246647881,-500.0,0.0001726,2]
[339978978,1728246647892,-279.33802534,0.0001726,2]
[339978979,1728246647904,-670.97,0.0001726,2]
[339978980,1728246647916,-556.15,0.0001726,2]
[339978981,1728246647927,-581.18,0.0001726,2]
[339978982,1728246647940,-540.18,0.0001726,2]
[339978983,1728246647949,-500.0,0.00017279,2]
[339978984,1728246647959,-500.0,0.00017286,2]
[339978985,1728246647969,-500.0,0.00017407,2]
[339978986,1728246647979,-963.81,0.00017533,2]
[339978987,1728246647991,-500.0,0.00017533,2]
[339978988,1728246648001,-227.11738188,0.00017534,2]
[339978989,1728246648011,-670.97,0.00017534,2]
[339978990,1728246648021,-556.15,0.00017534,2]
[339978991,1728246648030,-581.18,0.00017534,2]
[339978992,1728246648042,-540.18,0.00017534,2]
[339978993,1728246648052,-963.81,0.00017807,2]
[339978994,1728246648062,-500.0,0.00017807,2]
[339978995,1728246648073,-670.97,0.00017808,2]
[339978996,1728246648082,-556.15,0.00017808,2]
[339978997,1728246648092,-581.18,0.00017808,2]
[339978998,1728246648103,-540.18,0.00017808,2]
[339978999,1728246648113,-150.0,0.00017808,2]
[339979000,1728246648124,-963.81,0.00018081,2]
[339979001,1728246648135,-500.0,0.00018081,2]
[339979002,1728246648146,-670.97,0.00018082,2]
[339979003,1728246648157,-556.15,0.00018082,2]
[339979004,1728246648167,-581.18,0.00018082,2]
[339979005,1728246648176,-963.81,0.00018355,2]
[339979006,1728246648186,-500.0,0.00018355,2]
[339979007,1728246648196,-670.97,0.00018356,2]
[339979008,1728246648206,-556.15,0.00018356,2]
[339979009,1728246648216,-581.18,0.00018356,2]
[339979010,1728246648229,-500.51863415,0.00018488,2]
[339979011,1728246648239,-497.0787472,0.00018488,2]
[339979012,1728246648249,-500.0,0.00018488,2]
[339979013,1728246648259,-963.81,0.00018629,2]
[339979014,1728246648269,-500.0,0.00018629,2]
[339979015,1728246648279,-670.97,0.0001863,2]
[339979016,1728246648291,-556.15,0.0001863,2]
[339979017,1728246648301,-581.18,0.0001863,2]
[339979018,1728246648311,-963.81,0.00018903,2]
[339979019,1728246648321,-500.0,0.00018903,2]
[339979020,1728246648331,-670.97,0.00018904,2]
[339979021,1728246648341,-556.15,0.00018904,2]
[339979022,1728246648351,-581.18,0.00018904,2]
[339979023,1728246648360,-153.81638461,0.00019,2]
[339979024,1728246648370,-963.81,0.00019177,2]
[339979025,1728246648380,-500.0,0.00019177,2]
[339979026,1728246648390,-670.97,0.00019178,2]
[339979027,1728246648399,-556.15,0.00019178,2]
[339979028,1728246648409,-581.18,0.00019178,2]
[339979029,1728246648419,-247.239075,0.00019178,2]
[339979030,1728246648429,-963.81,0.00019451,2]
[339979031,1728246648438,-500.0,0.00019451,2]
[339979032,1728246648449,-670.97,0.00019452,2]
[339979033,1728246648459,-556.15,0.00019452,2]
[339979034,1728246648469,-581.18,0.00019452,2]
[339979035,1728246648479,-234.702203,0.00019616,2]
[339979036,1728246648489,-963.81,0.00019725,2]
[339979037,1728246648499,-500.0,0.00019725,2]
[339979038,1728246648509,-670.97,0.00019726,2]
[339979039,1728246648520,-556.15,0.00019726,2]
[339979040,1728246648531,-581.18,0.00019726,2]
[339979041,1728246648542,-500.0,0.00019959,2]
[339979042,1728246648552,-500.0,0.00019959,2]
[339979043,1728246648561,-492.52675972,0.00019959,2]
[339979044,1728246648571,-10520.59191786,0.0001996,2]
[339979063,1728247832099,-211.231982,0.00013096,2]
[339979066,1728247832110,-234.4644655,0.00013203,2]
[339979068,1728247832121,-165.284875,0.00013291,2]
[339979070,1728247832132,-174.6078157,0.00013339,2]
[339979072,1728247832143,-300.0,0.000136,4]
[339979074,1728247832154,-500.0,0.00013698,2]
[339979077,1728247832165,-166.666666,0.00013699,2]
[339979079,1728247832175,-504.223436,0.00013699,2]
[339979081,1728247832187,-803.7,0.000137,2]
[339979083,1728247832197,-2592.3207598,0.00013859,2]
[339979099,1728247832494,-3770.56720341,0.00013859,2]
[339979100,1728247832504,-170.97384348,0.00013972,2]
[339979101,1728247832515,-166.666666,0.00014019,2]
[339979102,1728247832524,-166.666666,0.0001434,2]
[339979103,1728247832535,-795.666289,0.00014346,2]
[339979104,1728247832549,-166.666666,0.0001466,2]
[339979105,1728247832559,-300.0,0.00014832,2]
[339979106,1728247832570,-556.32755795,0.00014833,2]
[339979107,1728247832585,-500.0,0.00014833,2]
[339979108,1728247832596,-500.0,0.00014833,2]
[339979109,1728247832607,-216.17134938,0.00014833,2]
[339979110,1728247832618,-24900.0,0.00014833,2]
[339979111,1728247832628,-211.65068892,0.000149,2]
[339979112,1728247832637,-211.65068891,0.000149,2]
[339979113,1728247832647,-166.666666,0.00014981,2]
[339979114,1728247832658,-795.666289,0.00015031,2]
[339979115,1728247832667,-500.0,0.00015107,2]
[339979116,1728247832677,-500.0,0.00015107,2]
[339979117,1728247832686,-500.0,0.000152,2]
[339979118,1728247832696,-500.0,0.0001525,2]
[339979119,1728247832705,-500.0,0.0001525,2]
[339979120,1728247832714,-166.666666,0.00015301,2]
[339979121,1728247832724,-500.0,0.00015381,2]
[339979122,1728247832733,-500.0,0.00015381,2]
[339979123,1728247832743,-500.0,0.00015386,2]
[339979124,1728247832752,-500.0,0.00015655,2]
[339979125,1728247832761,-500.0,0.00015655,2]
[339979126,1728247832771,-257.39989761,0.000157,2]
[339979127,1728247832780,-795.666289,0.00015716,2]
[339979128,1728247832789,-500.0,0.00015717,2]
[339979129,1728247832798,-500.0,0.00015729,2]
[339979130,1728247832807,-158.526541,0.00015909,2]
[339979131,1728247832816,-158.526541,0.00015917,2]
[339979132,1728247832825,-158.526541,0.00015925,2]
[339979133,1728247832834,-500.0,0.00015929,2]
[339979134,1728247832843,-500.0,0.00015929,2]
[339979135,1728247832853,-158.526541,0.00015933,2]
[339979136,1728247832862,-158.526541,0.0001594,2]
[339979137,1728247832871,-158.526541,0.00015948,2]
[339979138,1728247832880,-158.526541,0.00015956,2]
[339979139,1728247832890,-158.526541,0.00015964,2]
[339979140,1728247832899,-158.526541,0.00015972,2]
[339979141,1728247832909,-158.526541,0.0001598,2]
[339979142,1728247832918,-158.526541,0.00015988,2]
[339979143,1728247832927,-500.0,0.00016203,2]
[339979144,1728247832936,-500.0,0.00016203,2]
[339979145,1728247832946,-300.0,0.00016236,2]
[339979146,1728247832955,-500.0,0.00016476,2]
[339979147,1728247833154,-500.0,0.00016476,2]
[339979148,1728247833170,-500.0,0.00016641,2]
[339979149,1728247833179,-500.0,0.00016641,2]
[339979150,1728247833189,-500.0,0.0001675,2]
[339979151,1728247833199,-500.0,0.0001675,2]
[339979152,1728247833208,-1616.00814216,0.00016815,2]
[339979153,1728247833218,-500.0,0.00016915,2]
[339979154,1728247833231,-304.25,0.00016915,2]
[339979155,1728247833241,-500.0,0.00017024,2]
[339979156,1728247833250,-321.61572509,0.00017024,2]
[339979157,1728247833260,-500.0,0.00017189,2]
[339979158,1728247833269,-500.0,0.00017298,2]
[339979159,1728247833279,-500.0,0.00017463,2]
[339979160,1728247833288,-500.0,0.00017572,2]
[339979161,1728247833297,-500.0,0.00017737,2]
[339979162,1728247833307,-150.0,0.00017808,2]
[339979163,1728247833317,-500.0,0.00017846,2]
[339979164,1728247833326,-500.0,0.00018011,2]
[339979165,1728247833336,-500.0,0.0001812,2]
[339979166,1728247833345,-500.0,0.00018285,2]
[339979167,1728247833355,-500.0,0.00018394,2]
[339979168,1728247833365,-500.0,0.00018559,2]
[339979169,1728247833374,-500.0,0.00018668,2]
[339979170,1728247833383,-500.0,0.00018833,2]
[339979171,1728247833392,-500.0,0.00018942,2]
[339979172,1728247833402,-319.17811077,0.00019107,2]
[339979173,1728247833412,-161.270043,0.00019178,2]
[339979174,1728247833422,-6707.49708207,0.00019212,2]
[339979175,1728247833431,-500.0,0.00019215,2]
[339979176,1728247833440,-500.0,0.00019216,2]
[339979177,1728247833450,-153.81638461,0.000194,2]
[339979178,1728247833459,-450.46,0.0001949,2]
[339979179,1728247833468,-1442.65800491,0.00019583,2]
[339979187,1728247838144,-500.0,0.00015729,2]
[339979188,1728247838156,-5264.83907717,0.00019583,2]
[339979189,1728247838167,-1324.06607925,0.00019609,2]
[339979190,1728247838255,-291.94206285,0.00019609,2]
[339979191,1728247838267,-130.89227595,0.00019616,2]
[339979192,1728247838279,-80.33970605,0.00019616,2]
[339979193,1728247838289,-1404.57538128,0.0001989,3]
[339979194,1728247838300,-473.21000055,0.0001989,3]
[339979198,1728247841580,-1174.61692453,0.0001989,3]
[339979199,1728247841598,-1731.19781452,0.0001989,3]
[339979200,1728247841637,-501.55,0.0001989,3]
[339979211,1728247846170,-11397.03045702,0.0001989,3]
[339979212,1728247846182,-500.0,0.00019899,2]
[339979213,1728247846193,-3264.56721377,0.000199,2]
[339979214,1728247846205,-88888.0,0.000199,2]
[339979215,1728247846216,-26914.18090906,0.00019937,2]
[339979216,1728247846227,-7909.17379047,0.00019937,3]
[339979255,1728249032175,-190.108783,0.00013096,2]
[339979257,1728249032187,-163.91018,0.00013291,2]
[339979258,1728249032197,-723.33,0.000137,2]
[339979259,1728249032206,-500.0,0.00016641,2]
[339979260,1728249032216,-500.0,0.00016915,2]
[339979261,1728249032226,-166.666666,0.00017054,2]
[339979262,1728249032236,-188.45916073,0.00017189,2]
[339979263,1728249032251,-311.54083927,0.00017189,2]
[339979264,1728249032262,-252.111718,0.00017224,2]
[339979265,1728249032273,-2996.21989549,0.00017262,2]
[339979266,1728249032306,-6175.93030063,0.00017262,2]
[339979275,1728249038317,-300.08162648,0.00017262,2]
[339979276,1728249038328,-339.08900509,0.00017463,2]
[339979277,1728249038427,-160.91099491,0.00017463,2]
[339979278,1728249038438,-166.666666,0.00017519,2]
[339979279,1728249038448,-295.19028693,0.00017737,2]
[339979280,1728249039001,-204.80971307,0.00017737,2]
[339979281,1728249039011,-166.666666,0.00017984,2]
[339979282,1728249039021,-500.0,0.00018011,2]
[339979283,1728249039031,-500.0,0.00018285,2]
[339979284,1728249039041,-166.666666,0.00018449,2]
[339979285,1728249039052,-500.0,0.00018559,2]
[339979286,1728249039062,-500.0,0.00018833,2]
[339979287,1728249039075,-166.666666,0.00018913,2]
[339979288,1728249039085,-600.33669152,0.00019,2]
[339979289,1728249039096,-500.0,0.00019,2]
[339979290,1728249039106,-500.0,0.00019,2]
[339979291,1728249039116,-500.0,0.00019,2]
[339979292,1728249039128,-150.0,0.00019,2]
[339979293,1728249039137,-500.0,0.00019,2]
[339979294,1728249039149,-500.0,0.00019,2]
[339979295,1728249039159,-505.05329044,0.00019,2]
[339979296,1728249039171,-589.7915112,0.00019107,2]
[339979297,1728249039183,-234.877121,0.00019178,2]
[339979298,1728249039195,-166.666666,0.00019378,2]
[339979299,1728249039207,-153.81638461,0.000194,2]
[339979300,1728249039218,-190.108783,0.00019616,2]
[339979301,1728249039229,-6362.88796321,0.00019738,2]
[339979302,1728249039240,-500.0,0.00019799,2]
[339979303,1728249039250,-216.17134939,0.000198,2]
[339979304,1728249039260,-6812.92357606,0.000198,2]
[339979569,1728250232311,-171.097904,0.00013096,2]
[339979571,1728250232320,-720.9807375,0.0001357,2]
[339979573,1728250232329,-651.0,0.000137,2]
[339979575,1728250232339,-944.54095824,0.000176,2]
[339979577,1728250232348,-166.666666,0.00017981,2]
[339979579,1728250232357,-248.513913,0.0001822,2]